bitfinex-derivatives/quotes_SOLF0:USTF0_20250221
["timestamp","ask_amount","ask_price","bid_price","bid_amount"]
[1740160768143,5.8235,171.68,171.56,46.33820554]
[1740160768342,42.83040554,171.72,171.6,5.8262]
[1740160768540,0.03940972,171.64,171.6,0.04108031]
[1740160768740,42.83040554,171.72,171.56,46.33820554]
[1740160768937,0.04328391,171.64,171.6,0.04379022]
[1740160769143,5.8238,171.67,171.61,5.8256]
[1740160769344,0.03696867,171.64,171.61,5.8256]
[1740160770147,0.03696867,171.64,171.63,5.8252]
[1740160770948,3.5096,171.74,171.6,0.03975597]
[1740160770949,3.5096,171.74,171.62,42.83040554]
[1740160771248,11.0426,171.8,171.65,42.83040554]
[1740160771445,0.998873,171.79,171.62,42.83040554]
[1740160771748,42.83040554,171.78,171.59,42.83040554]
[1740160771950,5.8238,171.68,171.62,5.8254]
[1740160772145,5.8238,171.68,171.67,0.04130439]
[1740160772446,5.8238,171.67,171.66,0.04062288]
[1740160772745,5.8238,171.67,171.61,5.8256]
[1740160772936,5.8241,171.66,171.65,0.04016867]
[1740160773136,1.7687,171.71,171.56,46.33820554]
[1740160773338,0.03792637,171.67,171.64,0.04312647]
[1740160774747,5.8245,171.65,171.64,0.04312647]
[1740160775648,0.03792637,171.67,171.64,0.04312647]
[1740160778349,5.8245,171.65,171.64,0.04312647]
[1740160779351,5.8258,171.62,171.53,1.7678]
[1740160779548,26.41524939,171.63,171.53,1.7678]
[1740160779749,26.41524939,171.63,171.53,5.8285]
[1740160779944,26.41524939,171.63,171.52,57.819252]
[1740160780554,0.04109589,171.59,171.56,0.04163029]
[1740160782150,9.589e-05,171.59,171.56,0.04163029]
[1740160782350,3.5547,171.7,171.56,0.04163029]
[1740160782551,3.5547,171.7,171.58,26.41524939]
[1740160782751,5.8219,171.73,171.66,5.8239]
[1740160783146,9.22,171.77,171.59,1.7166]
[1740160783348,5.8218,171.73,171.6,1.8079]
[1740160783544,0.04277717,171.7,171.66,0.03772157]
[1740160785050,0.04277717,171.7,171.68,5.8232]
[1740160785645,0.04277717,171.7,171.66,0.03772157]
[1740160785851,0.04277717,171.7,171.69,5.8231]
[1740160786765,3.5467,171.78,171.67,26.41524939]
[1740160786954,3.5467,171.78,171.64,26.41524939]
[1740160787154,5.8207,171.77,171.64,26.41524939]
[1740160787356,5.8207,171.77,171.72,5.8218]
[1740160787754,5.8207,171.77,171.65,1.7245]
[1740160788059,0.03779453,171.76,171.65,1.7245]
[1740160788259,5.8207,171.77,171.69,0.04386646]
[1740160788463,0.04263263,171.72,171.69,0.04386646]
[1740160788855,0.04263263,171.72,171.71,5.8224]
[1740160789260,0.04263263,171.72,171.7,5.8227]
[1740160789652,0.04263263,171.72,171.69,0.04386646]
[1740160789854,0.04263263,171.72,171.71,5.8224]
[1740160790856,26.41524939,171.82,171.69,0.04386646]
[1740160790857,26.41524939,171.85,171.75,5.8209]
[1740160791062,3.7396,171.83,171.75,5.8209]
[1740160791257,5.82,171.79,171.74,5.8214]
[1740160791761,5.8206,171.77,171.71,5.8222]
[1740160792064,0.03716555,171.78,171.75,0.03823271]
[1740160792362,5.8207,171.76,171.71,5.8222]
[1740160792556,5.8207,171.76,171.66,1.7516]
[1740160792557,5.8207,171.76,171.75,0.0374368]
[1740160792754,26.41524939,171.81,171.66,1.7516]
[1740160792965,0.04333612,171.77,171.74,0.04143324]
[1740160795461,0.04333612,171.77,171.75,5.8211]
[1740160795857,0.04333612,171.77,171.74,0.04143324]
[1740160796460,5.8207,171.76,171.74,0.04143324]
[1740160796664,1.7876,171.87,171.74,0.04143324]
[1740160796854,1.7009,171.86,171.72,26.41524939]
[1740160797058,5.8181,171.84,171.78,5.8198]
[1740160797258,1.7009,171.86,171.72,26.41524939]
[1740160797662,1.7009,171.86,171.82,5.8186]
[1740160798059,0.04238882,171.86,171.82,5.8186]
[1740160798257,0.04238882,171.86,171.82,5.85662731]
[1740160798458,0.04238882,171.86,171.82,0.03802731]
[1740160798657,5.8178,171.85,171.82,0.03802731]
[1740160798860,0.04238882,171.86,171.82,0.03802731]
[1740160799766,26.41524939,171.85,171.7,1.7186]
[1740160799964,26.41524939,171.82,171.7,1.7186]
[1740160800161,5.8193,171.81,171.76,5.8207]
[1740160800364,26.41524939,171.82,171.7,1.7186]
[1740160800663,5.821,171.76,171.72,5.822]
[1740160800865,0.03929183,171.78,171.74,0.0395478]
[1740160801256,26.41524939,171.85,171.69,26.41524939]
[1740160801457,8.047e-05,171.78,171.74,0.03687812]
[1740160801667,8.047e-05,171.78,171.69,26.41524939]
[1740160801963,8.047e-05,171.78,171.7,1.8707]
[1740160802161,26.41524939,171.79,171.66,195.5058]
[1740160802468,26.41524939,171.79,171.66,3.5058]
[1740160802763,0.04231954,171.74,171.71,5.86130467]
[1740160802963,0.04231954,171.74,171.71,0.03890467]
[1740160804465,5.8221,171.72,171.71,0.03890467]
[1740160805270,26.41524939,171.73,171.61,3.5732]
[1740160805470,28.19824939,171.73,171.61,3.5732]
[1740160805670,28.19824939,171.73,171.62,5.8254]
[1740160805868,5.8234,171.69,171.61,3.5732]
[1740160806367,0.03839088,171.67,171.63,0.03921908]
[1740160806769,0.03839088,171.67,171.66,5.8241]
[1740160806967,0.03839088,171.67,171.63,0.03921908]
[1740160807263,0.03839088,171.67,171.63,5.86401908]
[1740160807470,0.03839088,171.67,171.63,0.03921908]
[1740160808270,26.45364027,171.67,171.63,0.03921908]
[1740160808775,5.8248,171.64,171.63,0.03921908]
[1740160809373,5.8259,171.61,171.56,5.8275]
[1740160809574,26.41524939,171.64,171.56,5.8275]
[1740160809875,9.2,171.68,171.55,28.25954939]
[1740160810177,26.41524939,171.75,171.58,26.41524939]
[1740160810472,7.32e-06,171.63,171.6,0.0368724]
[1740160810678,26.41524939,171.75,171.6,1.8369]
[1740160810972,1.16448326,171.75,171.61,26.41524939]
[1740160811168,1.16455106,171.74,171.64,26.41524939]
[1740160811373,1.16455106,171.74,171.65,1.7601]
[1740160811671,0.04100845,171.71,171.68,0.04205278]
[1740160812777,1.16455106,171.74,171.68,0.04205278]
[1740160812970,2.89,171.75,171.68,0.04205278]
[1740160813975,0.03971758,171.73,171.68,0.04205278]
[1740160814176,0.03971758,171.73,171.68,1.74415278]
[1740160815476,0.03971758,171.73,171.69,1.7572]
[1740160815878,0.03971758,171.73,171.72,5.8221]
[1740160816083,0.03971758,171.73,171.69,1.7572]
[1740160816275,1.758e-05,171.73,171.72,5.8221]
[1740160816680,1.758e-05,171.73,171.68,1.74415278]
[1740160817478,1.758e-05,171.73,171.68,5.86535278]
[1740160817479,5.8222,171.72,171.68,5.86535278]
[1740160817685,1.758e-05,171.73,171.68,0.04205278]
[1740160818177,1.758e-05,171.73,171.72,5.8221]
[1740160818384,1.758e-05,171.73,171.68,0.04205278]
[1740160818684,1.758e-05,171.73,171.71,5.8222]
[1740160818885,1.758e-05,171.73,171.68,0.04205278]
[1740160819281,5.8227,171.71,171.68,0.04205278]
[1740160819476,1.758e-05,171.73,171.68,0.04205278]
[1740160819881,5.8231,171.69,171.68,0.04205278]
[1740160820878,1.7877,171.72,171.68,0.04205278]
[1740160821279,5.8231,171.69,171.68,0.04205278]
[1740160822189,28.20294939,171.72,171.57,1.7958]
[1740160822684,28.20294939,171.72,171.63,5.8249]
[1740160822983,5.8237,171.68,171.63,5.8249]
[1740160823187,26.41524939,171.69,171.61,5.8258]
[1740160823483,0.03824801,171.67,171.64,0.04240235]
[1740160824485,5.8245,171.65,171.64,0.04240235]
[1740160824886,26.41524939,171.66,171.57,5.8271]
[1740160825289,26.41524939,171.66,171.52,57.82229338]
[1740160825688,5.8257,171.62,171.52,57.82229338]
[1740160825987,26.41524939,171.66,171.55,0.04030265]
[1740160826292,0.03803286,171.59,171.52,57.82229338]
[1740160826478,0.03803286,171.59,171.56,5.8273]
[1740160826981,0.03803286,171.59,171.54,0.0379349]
[1740160828584,5.8279,171.55,171.54,0.0379349]
[1740160829181,1.8532,171.58,171.54,0.0379349]
[1740160829889,5.8279,171.55,171.54,0.0379349]
[1740160830089,28.24284939,171.57,171.43,1.8646]
[1740160830888,1.8276,171.57,171.54,5.8281]
[1740160831092,26.41524939,171.63,171.49,26.41524939]
[1740160831290,0.03760231,171.57,171.54,0.03677105]
[1740160831488,0.03760231,171.57,171.56,5.8275]
[1740160831881,0.03760231,171.57,171.54,0.03677105]
[1740160832381,5.86510231,171.57,171.54,0.03677105]
[1740160832587,0.03760231,171.57,171.54,0.03677105]
[1740160832987,0.03760231,171.57,171.56,5.8275]
[1740160833287,0.03760231,171.57,171.54,0.03677105]
[1740160833592,0.03760231,171.57,171.56,5.8275]
[1740160834185,0.03760231,171.57,171.54,0.03677105]
[1740160834186,5.8278,171.56,171.54,0.03677105]
[1740160834389,0.03760231,171.57,171.54,0.03677105]
[1740160834993,26.4528517,171.57,171.46,1.7132]
[1740160835196,26.4528517,171.57,171.42,28.28244939]
[1740160835197,1.7318,171.56,171.42,1.8672]
[1740160835694,1.7318,171.56,171.48,5.83]
[1740160835890,1.7318,171.56,171.42,28.28244939]
[1740160836396,0.03929354,171.51,171.48,0.03862484]
[1740160836689,0.03929354,171.51,171.5,5.8293]
[1740160838793,1.8151,171.61,171.55,5.8278]
[1740160838995,5.8268,171.59,171.55,5.8278]
[1740160839191,1.8151,171.61,171.49,1.7636]
[1740160839387,26.41524939,171.69,171.54,26.41524939]
[1740160839595,5.8245,171.65,171.55,1.6977]
[1740160840196,0.04362932,171.62,171.58,0.03952743]
[1740160840594,0.04362932,171.62,171.51,26.41524939]
[1740160840895,29.99024939,171.69,171.58,0.04093767]
[1740160841090,26.41524939,171.63,171.58,0.04093767]
[1740160841297,5.8265,171.59,171.5,1.6977]
[1740160841999,0.04030098,171.56,171.53,0.04268159]
[1740160842699,5.86790098,171.56,171.53,0.04268159]
[1740160843103,0.04030098,171.56,171.53,0.04268159]
[1740160843395,5.8282,171.54,171.53,0.04268159]
[1740160843599,0.04030098,171.56,171.53,0.04268159]
[1740160844295,0.04030098,171.56,171.55,5.8279]
[1740160844590,26.41524939,171.66,171.53,0.04268159]
[1740160844795,5.8242,171.66,171.61,5.8256]
[1740160844989,5.8242,171.66,171.54,26.41524939]
[1740160845399,5.8242,171.66,171.62,5.8255]
[1740160845595,5.413,171.67,171.54,26.41524939]
[1740160845793,0.03716817,171.66,171.62,0.03785162]
[1740160846101,11.2371,171.67,171.62,0.03785162]
[1740160846402,0.03953033,171.66,171.62,0.03785162]
[1740160846601,0.03953033,171.66,171.65,5.8245]
[1740160846800,0.03953033,171.66,171.58,1.8657]
[1740160847005,0.03953033,171.66,171.65,5.8245]
[1740160848501,0.03953033,171.66,171.64,0.04376797]
[1740160849706,26.45477972,171.66,171.53,1.781]
[1740160850104,26.41524939,171.66,171.58,5.8268]
[1740160850408,26.41524939,171.63,171.52,3.4337]
[1740160850601,5.8271,171.58,171.53,5.8283]
[1740160851003,26.41524939,171.6,171.48,57.83706483]
[1740160851211,0.04000088,171.57,171.55,5.8279]
[1740160851709,0.04000088,171.57,171.55,5.8276]
[1740160853509,0.04000088,171.57,171.56,5.8275]
[1740160854215,8.8e-07,171.57,171.56,5.8275]
[1740160854614,8.8e-07,171.57,171.54,0.04005125]
[1740160854816,8.8e-07,171.57,171.56,5.8275]
[1740160855317,8.8e-07,171.57,171.54,0.04005125]
[1740160855719,5.8276,171.56,171.54,0.04005125]
[1740160856015,8.8e-07,171.57,171.54,0.04005125]
[1740160856210,5.8277,171.56,171.54,0.04005125]
[1740160856411,8.8e-07,171.57,171.54,0.04005125]
[1740160856612,5.82730088,171.57,171.54,0.04005125]
[1740160857820,5.8279,171.55,171.54,0.04005125]
[1740160858019,1.7293,171.56,171.45,192.0]
[1740160858315,26.41524939,171.54,171.49,5.8297]
[1740160858510,26.41524939,171.54,171.42,57.85164702]
[1740160858914,5.828,171.55,171.42,84.26689641]
[1740160859113,0.03908546,171.5,171.46,0.03958826]
[1740160859917,0.03908546,171.5,171.46,5.87038826]
[1740160860319,5.8303,171.48,171.46,0.03958826]
[1740160860715,0.03908546,171.5,171.46,0.03958826]
[1740160861522,0.03908546,171.5,171.3,63.12928118]
[1740160861523,26.41524939,171.47,171.32,5.3245]
[1740160861716,26.41524939,171.43,171.32,3.5995]
[1740160861916,26.41524939,171.43,171.3,63.12928118]
[1740160861917,26.41524939,171.4,171.3,63.12928118]
[1740160862521,0.03688758,171.37,171.34,0.03712523]
[1740160862713,5.8347,171.35,171.34,0.03712523]
[1740160862920,26.45213697,171.37,171.2,1.8621]
[1740160863116,26.41524939,171.34,171.2,1.8621]
[1740160863317,3.5133,171.36,171.2,1.8621]
[1740160863817,3.5133,171.36,171.29,5.8366]
[1740160864017,0.03670073,171.31,171.27,0.04033366]
[1740160864417,0.03670073,171.31,171.2,1.8621]
[1740160864618,0.03670073,171.31,171.27,0.04367236]
[1740160866616,26.45195012,171.31,171.09,31.56464058]
[1740160866818,26.41524939,171.28,171.14,1.7693]
[1740160867218,26.41524939,171.31,171.14,28.18454939]
[1740160867615,26.41524939,171.31,171.17,26.41524939]
[1740160867820,0.04120345,171.24,171.21,0.03926244]
[1740160868015,13.52936874,171.39,171.23,26.41524939]
[1740160868218,13.52936874,171.39,171.26,26.41524939]
[1740160868423,13.52936874,171.39,171.27,1.8607]
[1740160868721,1.8409,171.43,171.29,26.41524939]
[1740160869222,0.04450778,171.38,171.37,5.834]
[1740160869521,1.7155,171.47,171.34,0.04019248]
[1740160869723,26.41524939,171.43,171.35,5.8346]
[1740160869919,26.41524939,171.4,171.27,1.8607]
[1740160870223,26.41524939,171.43,171.27,28.27594939]
[1740160870723,0.04194753,171.37,171.33,0.03805113]
[1740160871119,1.7019,171.39,171.27,1.8607]
[1740160871423,0.03989761,171.37,171.34,5.8347]
[1740160871925,0.03989761,171.37,171.33,0.04468358]
[1740160872925,43.10341455,171.37,171.33,0.04468358]
[1740160873123,0.03989761,171.37,171.33,0.04468358]
[1740160873524,43.10341455,171.37,171.27,1.10538358]
[1740160874427,48.89861694,171.34,171.18,43.06351694]
[1740160874626,43.06351694,171.34,171.3,0.03821769]
[1740160874925,43.06351694,171.34,171.19,1.8532]
[1740160874926,43.06351694,171.31,171.19,1.8532]
[1740160875122,43.06351694,171.28,171.19,1.8532]
[1740160875321,43.06351694,171.28,171.23,0.03743014]
[1740160875518,5.8379,171.26,171.23,0.03743014]
[1740160875720,1.73947088,171.27,171.13,3.6722]
[1740160875924,1.73947088,171.27,171.23,0.04353698]
[1740160875925,43.06351694,171.25,171.23,0.04353698]
[1740160876126,43.06351694,171.25,171.13,3.6722]
[1740160876328,0.04467198,171.22,171.13,3.6722]
[1740160876623,0.04467198,171.22,171.17,0.0408134]
[1740160876823,43.10818892,171.22,171.17,0.0408134]
[1740160877728,0.04467198,171.22,171.17,0.0408134]
[1740160879027,0.04467198,171.22,171.17,5.8816134]
[1740160879820,0.04467198,171.22,171.17,0.0408134]
[1740160880023,0.04467198,171.22,171.18,5.8403]
[1740160880527,0.04467198,171.22,171.17,0.0408134]
[1740160880730,0.04467198,171.22,171.21,5.8394]
[1740160881430,9.2,171.38,171.25,5.8379]
[1740160881623,3.6362,171.35,171.18,3.6953]
[1740160881824,3.6362,171.35,171.2,43.06351694]
[1740160882230,5.8351,171.34,171.2,43.06351694]
[1740160882529,0.04115979,171.29,171.25,0.0444918]
[1740160883223,0.04115979,171.29,171.28,5.8371]
[1740160883532,0.04115979,171.29,171.25,0.0444918]
[1740160883731,0.04115979,171.29,171.26,5.8374]
[1740160883934,0.04115979,171.29,171.25,0.0444918]
[1740160884631,0.04115979,171.29,171.28,5.8371]
[1740160884835,0.04115979,171.29,171.25,0.0444918]
[1740160885632,43.06351694,171.4,171.25,0.0444918]
[1740160885836,43.06351694,171.4,171.23,43.06351694]
[1740160886523,43.06351694,171.37,171.24,1.8605]
[1740160887035,43.10614052,171.34,171.31,0.04061422]
[1740160887231,5.8365,171.3,171.26,5.8375]
[1740160887431,43.06351694,171.34,171.19,1.7242]
[1740160887629,5.8364,171.31,171.26,5.8374]
[1740160887934,43.06351694,171.34,171.26,5.8374]
[1740160888325,0.03944911,171.32,171.28,0.04177745]
[1740160888526,5.8361,171.31,171.28,0.04177745]
[1740160888930,0.03944911,171.32,171.28,0.04177745]
[1740160889129,5.8365,171.3,171.28,0.04177745]
[1740160889531,5.87524911,171.32,171.28,0.04177745]
[1740160889729,0.03944911,171.32,171.28,0.04177745]
[1740160890634,0.03944911,171.32,171.31,5.836]
[1740160891433,0.03944911,171.32,171.28,0.04177745]
[1740160892028,5.87534911,171.32,171.28,5.87857745]
[1740160892234,0.03944911,171.32,171.28,0.04177745]
[1740160892541,5.8367,171.3,171.28,0.04177745]
[1740160893534,43.06351694,171.31,171.18,3.6953]
[1740160893834,43.06351694,171.28,171.18,3.6953]
[1740160894540,5.8388,171.23,171.19,5.8399]
[1740160894738,5.8388,171.23,171.21,0.04120784]
[1740160895039,0.03873652,171.25,171.21,0.04120784]
[1740160895340,5.8391,171.22,171.21,0.04120784]
[1740160895538,43.10225346,171.25,171.21,0.04120784]
[1740160895738,5.8385,171.24,171.21,0.04120784]
[1740160895928,0.03873652,171.25,171.21,0.04120784]
[1740160896135,0.03873652,171.25,171.23,5.8387]
[1740160896638,43.10225346,171.25,171.21,0.04120784]
[1740160896839,5.8391,171.22,171.21,0.04120784]
[1740160897644,5.84,171.2,171.13,3.5515]
[1740160897946,43.06351694,171.22,171.16,5.8409]
[1740160898151,43.06351694,171.22,171.13,3.5515]
[1740160898344,5.8397,171.21,171.13,3.5515]
[1740160898646,44.81581694,171.27,171.13,3.5515]
[1740160898937,0.03685894,171.19,171.15,0.04209154]
[1740160899237,44.81581694,171.27,171.13,3.5515]
[1740160899440,0.04401587,171.19,171.15,0.03922143]
[1740160899642,0.04401587,171.19,171.18,5.8405]
[1740160899940,0.04249199,171.2,171.17,0.04425145]
[1740160900137,5.8385,171.24,171.19,5.8401]
[1740160900341,0.04079146,171.2,171.17,0.04425145]
[1740160900644,5.8389,171.23,171.2,5.8396]
[1740160901140,0.03847073,171.23,171.2,0.04108593]
[1740160901337,0.03847073,171.23,171.21,5.8392]
[1740160901641,0.03847073,171.23,171.2,0.04108593]
[1740160901843,0.03847073,171.23,171.22,5.8391]
[1740160902339,0.03847073,171.23,171.2,5.88058593]
[1740160902831,0.03847073,171.23,171.2,0.04108593]
[1740160903237,0.03847073,171.23,171.22,5.8391]
[1740160903840,7.073e-05,171.23,171.22,5.8391]
[1740160911945,7.073e-05,171.23,171.2,0.04108593]
[1740160912651,7.073e-05,171.23,171.22,5.8391]
[1740160913342,7.073e-05,171.23,171.21,5.8393]
[1740160913544,7.073e-05,171.23,171.2,0.04108593]
[1740160914345,7.073e-05,171.23,171.21,5.8394]
[1740160914845,7.073e-05,171.23,171.2,5.88078593]
[1740160915152,7.073e-05,171.23,171.2,0.04108593]
[1740160915350,5.83887073,171.23,171.2,5.88078593]
[1740160915547,7.073e-05,171.23,171.2,0.04108593]
[1740160915852,5.83887073,171.23,171.2,0.04108593]
[1740160916743,5.8393,171.22,171.2,0.04108593]
[1740160917147,7.073e-05,171.23,171.12,1.7116]
[1740160917444,7.7025,171.22,171.17,5.8406]
[1740160917649,1.8631,171.22,171.17,5.8406]
[1740160917844,1.8631,171.22,171.12,1.7116]
[1740160918248,1.7024,171.23,171.12,1.7116]
[1740160918555,0.0400031,171.19,171.15,0.037858]
[1740160919054,0.0400031,171.19,171.18,5.8405]
[1740160919251,0.0400031,171.19,171.15,0.037858]
[1740160919850,0.0400031,171.19,171.16,5.8409]
[1740160920247,0.0400031,171.19,171.15,5.879258]
[1740160920556,0.0400031,171.19,171.15,0.037858]
[1740160920757,0.0400031,171.19,171.17,5.8405]
[1740160921055,0.0400031,171.19,171.15,0.037858]
[1740160921256,0.0400031,171.19,171.17,5.8406]
[1740160921559,0.0400031,171.19,171.15,0.037858]
[1740160922557,0.0400031,171.19,171.18,5.8405]
[1740160922955,3.1e-06,171.19,171.18,5.8405]
[1740160925056,3.1e-06,171.19,171.15,0.037858]
[1740160926162,3.1e-06,171.19,171.18,5.8405]
[1740160926357,3.1e-06,171.19,171.15,0.037858]
[1740160927861,3.1e-06,171.19,171.18,5.8405]
[1740160929060,3.1e-06,171.19,171.17,5.8407]
[1740160929563,5.8402031,171.19,171.15,0.037858]
[1740160929961,3.1e-06,171.19,171.15,0.037858]
[1740160930165,3.1e-06,171.19,171.17,5.8407]
[1740160930363,3.1e-06,171.19,171.15,0.037858]
[1740160930767,3.1e-06,171.19,171.18,5.8405]
[1740160932575,13.57794338,171.32,171.28,5.837]
[1740160932868,5.8365,171.3,171.19,5.3833]
[1740160933265,13.57794338,171.32,171.19,5.3833]
[1740160933768,0.03839525,171.27,171.24,0.04360431]
[1740160934267,0.03839525,171.27,171.25,5.8381]
[1740160936070,0.03839525,171.27,171.26,5.8377]
[1740160936666,0.03839525,171.27,171.25,5.838]
[1740160936867,0.03839525,171.27,171.24,0.04360431]
[1740160937174,5.87589525,171.27,171.12,26.52697252]
[1740160937373,26.52697252,171.29,171.12,26.52697252]
[1740160937771,26.52697252,171.29,171.21,5.8392]
[1740160938168,5.8383,171.25,171.23,0.03859398]
[1740160938365,26.52697252,171.29,171.12,218.52697252]
[1740160938569,0.03871212,171.26,171.22,0.04069511]
[1740160938770,26.52697252,171.29,171.22,0.04069511]
[1740160938970,26.56688394,171.26,171.22,0.04069511]
[1740160939975,5.8384,171.24,171.22,0.04069511]
[1740160940169,26.56688394,171.26,171.22,0.04069511]
[1740160940374,5.8388,171.23,171.22,0.04069511]
[1740160941477,26.52697252,171.23,171.12,192.0]
[1740160941668,1.7795,171.22,171.11,3.5129]
[1740160942072,5.8398,171.2,171.11,3.5129]
[1740160942286,1.7795,171.22,171.11,3.5129]
[1740160942472,5.8397,171.21,171.16,5.841]
[1740160942677,0.03945528,171.18,171.15,0.04437842]
[1740160944177,5.8408,171.17,171.15,0.04437842]
[1740160944871,0.03945528,171.18,171.15,0.04437842]
[1740160944872,5.8412,171.16,171.15,0.04437842]
[1740160945273,5.8412,171.16,171.07,192.0]
[1740160945777,26.52697252,171.21,171.14,5.8417]
[1740160945974,1.7795,171.22,171.07,218.52697252]
[1740160946376,0.03708265,171.16,171.13,0.04364955]
[1740160946780,0.03708265,171.16,171.14,5.8418]
[1740160946977,0.03708265,171.16,171.13,0.04364955]
[1740160947883,0.03708265,171.16,171.15,5.8415]
[1740160949581,5.8418,171.14,171.13,0.04364955]
[1740160950173,32.36857252,171.15,171.13,0.04364955]
[1740160950374,26.52697252,171.15,171.13,0.04364955]
[1740160950578,26.52697252,171.15,171.04,1.7635]
[1740160950779,26.52697252,171.18,171.04,1.7635]
[1740160950974,28.27417252,171.21,171.04,1.7635]
[1740160951181,28.27417252,171.21,171.13,5.8419]
[1740160951581,26.52697252,171.18,171.04,1.7635]
[1740160951783,5.8412,171.16,171.15,0.04079494]
[1740160951976,26.52697252,171.18,171.14,0.04276555]
[1740160952177,28.27417252,171.21,171.16,5.8412]
[1740160952383,0.04238012,171.18,171.14,0.03963243]
[1740160952686,26.56935264,171.18,171.14,0.03963243]
[1740160952880,5.8414,171.16,171.14,0.03963243]
[1740160953280,26.56935264,171.18,171.14,0.03963243]
[1740160954486,26.52697252,171.15,171.0,192.2]
[1740160954684,26.52697252,171.15,171.01,1.8133]
[1740160954882,5.8422,171.13,171.09,5.8434]
[1740160955182,26.52697252,171.15,171.01,1.8133]
[1740160955390,5.8408,171.17,171.02,26.52697252]
[1740160955582,7.07e-05,171.1,171.06,0.04423122]
[1740160956087,7.07e-05,171.1,171.09,5.8435]
[1740160959103,7.07e-05,171.1,171.09,32.37047252]
[1740160959283,26.52697252,171.24,171.18,5.8402]
[1740160959588,26.52697252,171.24,171.09,1.8008]
[1740160959789,5.8395,171.21,171.09,1.8008]
[1740160959986,26.52697252,171.21,171.09,1.8008]
[1740160960489,0.04374511,171.17,171.13,0.04427794]
[1740160960891,0.04374511,171.17,171.14,5.8418]
[1740160961093,0.04374511,171.17,171.13,0.04427794]
[1740160961895,1.7866,171.26,171.13,0.04427794]
[1740160962296,1.7866,171.26,171.12,26.52697252]
[1740160962494,1.7812,171.27,171.15,26.52697252]
[1740160962795,1.7812,171.27,171.16,1.7916]
[1740160962992,7.6189,171.27,171.22,5.8389]
[1740160963193,0.03799306,171.23,171.22,5.8389]
[1740160963998,0.03799306,171.23,171.21,0.04361115]
[1740160964205,9.306e-05,171.23,171.21,0.04361115]
[1740160964696,9.306e-05,171.23,171.22,5.8391]
[1740160965502,9.306e-05,171.23,171.21,0.04361115]
[1740160966087,9.306e-05,171.23,171.22,5.8391]
[1740160967189,9.306e-05,171.23,171.22,7.7185]
[1740160969395,3.6742,171.33,171.22,28.40637252]
[1740160969697,26.52697252,171.39,171.22,28.40637252]
[1740160969998,5.8351,171.34,171.22,28.40637252]
[1740160970194,26.52697252,171.39,171.3,5.8364]
[1740160970401,5.8348,171.35,171.22,28.40637252]
[1740160970594,26.52697252,171.39,171.32,0.04397505]
[1740160970796,5.8351,171.34,171.32,0.04397505]
[1740160971000,5.8351,171.34,171.22,28.40637252]
[1740160971198,0.04186473,171.35,171.31,0.03905407]
[1740160971500,5.8343,171.37,171.32,5.8357]
[1740160971702,26.52697252,171.39,171.31,0.04089624]
[1740160972003,0.04141941,171.36,171.31,0.04089624]
[1740160974001,26.56839193,171.36,171.31,0.04089624]
[1740160974197,0.04141941,171.36,171.31,0.04089624]
[1740160974603,0.04141941,171.36,171.33,5.8352]
[1740160974903,0.04141941,171.36,171.31,0.04089624]
[1740160975099,1.941e-05,171.36,171.31,0.04089624]
[1740160975300,1.941e-05,171.36,171.35,5.8347]
[1740160977895,1.941e-05,171.36,171.31,1.76329624]
[1740160978102,1.941e-05,171.36,171.31,0.04089624]
[1740160978302,5.8351,171.34,171.31,0.04089624]
[1740160978497,1.941e-05,171.36,171.31,0.04089624]
[1740160979095,5.8351,171.34,171.31,0.04089624]
[1740160979299,1.941e-05,171.36,171.31,0.04089624]
[1740160979500,5.835,171.35,171.31,0.04089624]
[1740160980003,26.52699193,171.36,171.31,0.04089624]
[1740160980199,5.8357,171.32,171.31,0.04089624]
[1740160980400,26.52699193,171.36,171.22,5.4801]
[1740160980703,1.941e-05,171.36,171.24,26.52697252]
[1740160980902,5.3679,171.38,171.24,26.52697252]
[1740160981104,5.834,171.37,171.31,5.8357]
[1740160981304,5.834,171.37,171.24,26.52697252]
[1740160981506,0.03796927,171.36,171.32,0.0418739]
[1740160982011,26.52697252,171.48,171.33,26.52697252]
[1740160982202,1.00165973,171.47,171.33,26.52697252]
[1740160982408,26.52697252,171.51,171.33,28.29927252]
[1740160982605,1.00177173,171.5,171.34,3.5901]
[1740160982907,26.52697252,171.48,171.34,3.5901]
[1740160983107,1.00177173,171.47,171.33,1.7723]
[1740160983307,26.52697252,171.45,171.3,26.52697252]
[1740160983507,26.52697252,171.45,171.39,0.04208111]
[1740160983508,0.04314965,171.43,171.39,0.04208111]
[1740160983701,3.4869,171.44,171.28,5.3624]
[1740160983702,3.4869,171.44,171.3,26.52697252]
[1740160984204,3.4869,171.44,171.4,5.8327]